bitfinex/quotes_SOLUSD_20240716
["timestamp","ask_amount","ask_price","bid_price","bid_amount"]
[1721116833620,6.74239952,155.12,155.01,45.0]
[1721116833828,16.1187,155.1,155.01,45.0]
[1721116833999,6.45,155.04,155.01,45.0]
[1721116834319,6.4491,155.06,155.01,45.0]
[1721116834619,20.0,155.05,155.0,6.2879]
[1721116834821,6.45,155.04,155.0,6.2879]
[1721116835025,20.0,155.03,155.0,6.2879]
[1721116835529,20.0,155.06,155.0,6.2879]
[1721116835707,6.4487,155.07,155.01,45.0]
[1721116835898,20.0,155.09,155.0,6.2879]
[1721116835899,20.0,155.06,155.0,6.2879]
[1721116836100,20.0,155.09,155.0,6.2879]
[1721116836795,6.4496,155.05,155.0,6.2879]
[1721116837098,20.0,155.09,155.0,6.2879]
[1721116837300,39.41,155.09,155.0,6.2879]
[1721116837600,6.4495,155.05,155.0,6.2879]
[1721116837800,20.0,155.09,155.01,45.0]
[1721116838018,50.04239952,155.12,155.01,45.0]
[1721116838317,6.4485,155.08,155.01,45.0]
[1721116838617,6.4478,155.09,155.01,45.0]
[1721116839219,6.4487,155.07,155.01,45.0]
[1721116839522,6.4486,155.08,155.01,45.0]
[1721116839723,20.0,155.07,155.02,1.2899381]
[1721116840027,6.74239952,155.12,155.01,45.0]
[1721116840028,20.0,155.08,155.01,45.0]
[1721116840201,36.3239524,155.14,155.02,1.2898624]
[1721116840202,6.4475,155.1,155.02,1.2898624]
[1721116840400,16.9139524,155.14,155.03,15.6759]
[1721116840401,6.4479,155.09,155.03,15.6759]
[1721116840613,6.4479,155.09,155.04,45.0]
[1721116842257,36.3239524,155.14,155.03,15.6759]
[1721116842413,16.1178,155.11,155.03,15.6759]
[1721116842743,20.0,155.1,155.03,15.6759]
[1721116843035,6.4483,155.08,155.03,15.6759]
[1721116843216,20.0,155.07,155.03,15.6759]
[1721116843629,20.0,155.07,155.04,45.0]
[1721116843828,6.4479,155.09,155.04,45.0]
[1721116843829,20.0,155.08,155.04,45.0]
[1721116844521,6.4483,155.08,155.04,45.0]
[1721116845240,6.449,155.07,155.04,45.0]
[1721116845530,6.4483,155.08,155.04,45.0]
[1721116846337,6.4479,155.09,155.04,45.0]
[1721116846637,20.0,155.08,155.04,46.28979282]
[1721116846932,26.4484,155.08,155.04,45.0]
[1721116847137,6.4484,155.08,155.04,45.0]
[1721116847734,20.0,155.09,155.04,45.0]
[1721116847918,6.448,155.09,155.04,45.0]
[1721116848118,20.0,155.08,155.04,45.0]
[1721116848914,38.4,155.13,155.05,6.1125]
[1721116849119,6.4472,155.11,155.05,6.1125]
[1721116849434,20.0,155.1,155.06,45.0]
[1721116849639,26.4475,155.1,155.06,45.0]
[1721116850010,7.54443284,155.14,155.06,45.0]
[1721116850243,0.7985524,155.14,155.06,45.0]
[1721116850538,0.7985524,155.14,155.07,1.28936485]
[1721116850709,0.7985524,155.14,155.06,45.0]
[1721116851414,6.4466,155.12,155.06,45.0]
[1721116851611,6.4462,155.13,155.06,45.0]
[1721116851856,7.2443524,155.14,155.06,45.0]
[1721116852027,20.0,155.13,155.06,45.0]
[1721116852230,20.0,155.13,155.07,1.28942053]
[1721116852415,20.0,155.13,155.06,45.0]
[1721116852831,20.7985524,155.14,155.06,45.0]
[1721116853143,20.7985524,155.14,155.07,15.8641]
[1721116853312,27.2443524,155.14,155.08,45.0]
[1721116854019,20.7985524,155.14,155.08,45.0]
[1721116854336,27.2443524,155.14,155.08,45.0]
[1721116855436,6.4462,155.13,155.08,45.0]
[1721116856329,6.4466,155.12,155.08,45.0]
[1721116857234,6.4462,155.13,155.08,45.0]
[1721116857862,27.2443524,155.14,155.08,45.0]
[1721116858360,20.7985524,155.14,155.08,45.0]
[1721116858566,20.7985524,155.14,155.09,6.5383]
[1721116858747,27.2443524,155.14,155.1,45.0]
[1721116859857,20.7985524,155.14,155.1,45.0]
[1721116860053,0.7985524,155.14,155.11,15.8907]
[1721116860266,0.7985524,155.14,155.12,46.28899122]
[1721116860566,0.7985524,155.14,155.13,1.28599098]
[1721116860738,0.7985524,155.14,155.12,45.0]
[1721116860947,16.1022,155.26,155.14,15.8907]
[1721116861145,16.1022,155.26,155.15,46.28872867]
[1721116861345,35.5122,155.26,155.15,45.0]
[1721116861575,38.4,155.24,155.15,45.0]
[1721116861869,6.4431,155.21,155.15,45.0]
[1721116862267,38.4,155.24,155.15,45.0]
[1721116862268,6.4417,155.24,155.16,1.28872245]
[1721116862434,38.4,155.28,155.16,1.28872245]
[1721116862641,6.4429,155.21,155.15,45.0]
[1721116862842,54.5038,155.25,155.15,45.0]
[1721116863244,6.4442,155.18,155.15,45.0]
[1721116863444,73.9162,155.22,155.14,15.8907]
[1721116863638,20.0,155.21,155.14,15.8907]
[1721116863869,26.4429,155.21,155.14,15.8907]
[1721116864252,6.4433,155.2,155.14,15.8907]
[1721116864446,38.4,155.26,155.15,1.28889946]
[1721116864646,70.69664989,155.29,155.16,6.2981]
[1721116865038,6.442,155.24,155.17,45.0]
[1721116865274,6.4421,155.23,155.17,45.0]
[1721116865558,16.1007,155.28,155.18,1.2886247]
[1721116865559,6.4417,155.24,155.18,1.2886247]
[1721116865767,16.1007,155.28,155.17,45.0]
[1721116865981,6.4418,155.24,155.17,45.0]
[1721116866266,70.69664989,155.29,155.17,45.0]
[1721116866267,6.4412,155.25,155.18,1.28855988]
[1721116866466,6.4407,155.27,155.18,1.28855988]
[1721116866670,6.4408,155.26,155.18,1.28855988]
[1721116866894,47.59002295,155.29,155.19,15.5131]
[1721116867041,47.59002295,155.29,155.2,46.28842668]
[1721116867367,6.4415,155.25,155.2,45.0]
[1721116867570,6.4407,155.27,155.2,45.0]
[1721116867744,20.0,155.26,155.2,45.0]
[1721116868063,20.0,155.26,155.2,46.28843941]
[1721116868274,9.19002295,155.29,155.21,7.85782689]
[1721116868481,6.4396,155.29,155.22,45.0]
[1721116868653,0.83915287,155.3,155.23,1.28820126]
[1721116868852,7.27835287,155.3,155.22,45.0]
[1721116869070,0.83915287,155.3,155.23,1.28820115]
[1721116869248,0.83915287,155.3,155.23,16.064]
[1721116869449,0.83915287,155.3,155.24,45.0]
[1721116869869,0.83915287,155.3,155.25,1.28807571]
[1721116870256,0.83915287,155.3,155.24,45.0]
[1721116870872,27.27835287,155.3,155.24,45.0]
[1721116871056,20.83915287,155.3,155.23,16.064]
[1721116871260,6.4406,155.27,155.23,16.064]
[1721116871583,6.4416,155.24,155.23,16.064]
[1721116871876,6.4403,155.27,155.23,16.064]
[1721116872084,20.0,155.26,155.23,16.064]
[1721116872677,0.83915287,155.3,155.23,16.064]
[1721116872880,7.27845287,155.3,155.23,16.064]
[1721116873184,6.44,155.28,155.23,16.064]
[1721116874268,6.4404,155.27,155.23,16.064]
[1721116874674,6.4399,155.29,155.23,16.064]
[1721116874983,20.0,155.28,155.23,16.064]
[1721116875155,20.0,155.28,155.24,45.0]
[1721116875578,20.0,155.29,155.24,45.0]
[1721116875781,26.4398,155.29,155.24,45.0]
[1721116876079,6.4404,155.27,155.24,45.0]
[1721116876284,6.4404,155.27,155.23,16.064]
[1721116876666,20.0,155.29,155.21,6.5694]
[1721116876865,6.4408,155.26,155.21,6.5694]
[1721116877265,6.4417,155.24,155.21,6.5694]
[1721116877476,39.41,155.29,155.12,255.3]
[1721116877477,6.4433,155.2,155.17,6.063]
[1721116877684,6.4429,155.21,155.17,6.063]
[1721116877982,54.503,155.25,155.17,6.063]
[1721116878160,26.4416,155.24,155.17,6.063]
[1721116878565,20.0,155.24,155.17,6.063]
[1721116878767,20.0,155.24,155.18,1.28867308]
[1721116878994,26.4417,155.24,155.17,6.063]
[1721116879282,6.442,155.23,155.18,45.0]
[1721116879465,20.0,155.22,155.18,45.0]
[1721116879666,6.442,155.23,155.18,45.0]
[1721116879875,20.0,155.22,155.18,45.0]
[1721116880384,38.4,155.25,155.17,6.063]
[1721116880583,20.0,155.24,155.17,6.063]
[1721116881186,16.1054,155.23,155.17,6.063]
[1721116881377,58.4,155.22,155.13,6.3747]
[1721116881689,6.4448,155.17,155.13,6.3747]
[1721116882373,38.4,155.19,155.13,6.3747]
[1721116882374,6.445,155.16,155.13,6.3747]
[1721116882567,6.4455,155.15,155.13,6.3747]
[1721116883594,16.1103,155.18,155.09,6.4898]
[1721116883802,6.4461,155.14,155.09,6.4898]
[1721116884301,6.4467,155.12,155.09,6.4898]
[1721116884506,6.4467,155.12,154.96,293.7]
[1721116884507,6.4474,155.1,155.03,22.1779]
[1721116884799,20.0,155.11,155.03,22.1779]
[1721116885104,26.447,155.11,155.03,22.1779]
[1721116885277,20.0,155.11,155.03,22.1779]
[1721116885483,6.4474,155.1,155.03,22.1779]
[1721116885798,20.0,155.12,155.03,22.1779]
[1721116885970,20.0,155.12,155.04,45.0]
[1721116886394,6.447,155.11,155.04,45.0]
[1721116886572,26.4474,155.1,155.04,45.0]
[1721116886774,20.0,155.1,155.04,45.0]
[1721116886975,20.0,155.12,155.05,1.28975647]
[1721116887166,26.4466,155.12,155.05,1.28975647]
[1721116887370,26.4466,155.12,155.04,45.0]
[1721116887973,6.4462,155.13,155.04,45.0]
[1721116888175,38.4,155.19,155.07,16.1132]
[1721116888375,38.4,155.19,155.08,46.28934417]
[1721116888704,6.4445,155.18,155.08,45.0]
[1721116889313,6.4445,155.18,155.1,6.5901]
[1721116889472,6.4439,155.19,155.11,46.28923267]
[1721116889675,25.06377423,155.23,155.11,46.28923267]
[1721116889980,6.4441,155.18,155.11,45.0]
[1721116890393,6.4437,155.2,155.11,45.0]
[1721116890592,6.4433,155.2,155.13,15.0284]
[1721116890793,6.4433,155.2,155.14,46.28901659]
[1721116891094,19.41,155.25,155.14,45.0]
[1721116891495,35.514,155.25,155.14,45.0]
[1721116891818,6.4444,155.18,155.14,45.0]
[1721116891983,38.9466267,155.26,155.13,15.0284]
[1721116891984,6.4446,155.17,155.13,15.0284]
[1721116892304,38.4,155.21,155.13,15.0284]
[1721116892486,6.4444,155.18,155.13,15.0284]
[1721116892874,6.4445,155.17,155.13,15.0284]
[1721116893075,6.4451,155.16,155.13,15.0284]
[1721116893286,20.0,155.2,155.1,6.5901]
[1721116893287,20.0,155.15,155.1,6.5901]
[1721116894025,20.0,155.2,155.1,6.5901]
[1721116894592,20.0,155.2,155.11,45.0]
[1721116894891,6.7413267,155.26,155.11,45.0]
[1721116895315,59.2307,155.28,155.12,23.0268]
[1721116895619,6.4426,155.22,155.13,45.0]
[1721116895815,16.1029,155.26,155.13,45.0]
[1721116896011,6.4429,155.21,155.13,45.0]
[1721116896315,6.442,155.23,155.13,45.0]
[1721116896814,20.0,155.22,155.13,45.0]
[1721116897009,20.0,155.22,155.14,1.28874327]
[1721116897208,20.0,155.22,155.15,1.28870919]
[1721116897616,20.0,155.22,155.13,45.0]
[1721116897793,6.4416,155.24,155.14,6.209]
[1721116898111,20.0,155.23,155.15,61.1753]
[1721116898308,20.0,155.24,155.15,61.1753]
[1721116898710,26.4416,155.24,155.15,61.1753]
[1721116898906,6.74056338,155.28,155.17,6.5825]
[1721116899099,6.4403,155.28,155.19,16.474]
[1721116899304,6.4403,155.28,155.2,46.28838557]
[1721116899519,6.4403,155.28,155.21,1.2883871]
[1721116899699,16.93795287,155.3,155.21,1.2883871]
[1721116899899,16.93795287,155.3,155.2,45.0]
[1721116900216,6.4417,155.24,155.2,45.0]
[1721116900418,36.34795287,155.3,155.2,45.0]
[1721116900593,6.4411,155.26,155.2,45.0]
[1721116900793,20.0,155.29,155.2,45.0]
[1721116900995,6.4412,155.25,155.2,45.0]
[1721116901194,20.0,155.29,155.2,46.2885124]
[1721116901490,6.4404,155.27,155.21,1.2884116]
[1721116901695,6.4399,155.28,155.21,1.2884116]
[1721116901893,6.4399,155.28,155.22,6.3971]
[1721116902120,6.4404,155.27,155.23,45.0]
[1721116903118,6.4408,155.26,155.23,45.0]
[1721116903617,6.4404,155.27,155.23,45.0]
[1721116904009,0.83915287,155.3,155.23,45.0]
[1721116904798,6.4399,155.29,155.23,45.0]
[1721116905021,20.0,155.28,155.23,45.0]
[1721116905319,0.83915287,155.3,155.23,45.0]
[1721116905320,0.83915287,155.3,155.25,15.4097]
[1721116905632,0.83915287,155.3,155.26,45.0]
[1721116905922,6.4396,155.29,155.26,45.0]
[1721116906217,0.83915287,155.3,155.25,15.4097]
[1721116906415,0.83915287,155.3,155.26,45.0]
[1721116907922,0.83915287,155.3,155.27,7.57138602]
[1721116908103,0.83915287,155.3,155.28,45.0]
[1721116908913,0.83915287,155.3,155.29,1.28774354]
[1721116909115,0.83915287,155.3,155.28,45.0]
[1721116909427,20.0,155.38,155.28,45.0]
[1721116909428,26.4371,155.35,155.28,45.0]
[1721116909932,6.4375,155.34,155.28,45.0]
[1721116910433,20.0,155.35,155.27,6.4035]
[1721116910632,6.4383,155.32,155.27,6.4035]
[1721116911002,20.0,155.35,155.27,6.4035]
[1721116911207,16.0936,155.35,155.27,6.4035]
[1721116911408,20.0,155.34,155.27,6.4035]
[1721116911639,6.4383,155.32,155.27,6.4035]
[1721116911804,6.4379,155.33,155.28,45.0]
[1721116912132,20.0,155.32,155.28,45.0]
[1721116912624,26.438,155.33,155.28,45.0]
[1721116912835,20.0,155.33,155.28,45.0]
[1721116913037,20.0,155.37,155.28,45.0]
[1721116913330,6.4382,155.33,155.28,45.0]
[1721116913531,6.4387,155.31,155.27,6.4035]
[1721116914005,20.0,155.32,155.27,6.4035]
[1721116914515,58.29,155.37,155.28,45.0]
[1721116914917,6.4371,155.35,155.28,45.0]
[1721116915117,20.0,155.34,155.28,45.0]
[1721116915314,26.4375,155.34,155.28,45.0]
[1721116915725,20.0,155.34,155.29,15.2532]
[1721116916035,20.0,155.35,155.29,15.2532]
[1721116916213,26.4371,155.35,155.29,15.2532]
[1721116916414,6.4379,155.33,155.29,15.2532]
[1721116916735,6.4375,155.34,155.29,15.2532]
[1721116917235,6.4379,155.33,155.29,15.2532]
[1721116917815,6.4385,155.32,155.29,15.2532]
[1721116918223,6.4379,155.33,155.29,15.2532]
[1721116918627,6.4375,155.34,155.29,15.2532]
[1721116918945,20.0,155.35,155.29,15.2532]
[1721116919151,6.4388,155.31,155.29,15.2532]
[1721116919316,6.4383,155.33,155.29,15.2532]
[1721116919717,6.4378,155.34,155.29,15.2532]
[1721116920139,6.438,155.33,155.3,45.0]
[1721116920340,73.7925,155.36,155.27,6.4035]
[1721116920640,6.4391,155.3,155.27,6.4035]
[1721116920840,20.0,155.35,155.27,6.4035]
[1721116921042,6.4387,155.31,155.27,6.4035]
[1721116921346,39.41,155.35,155.27,6.4035]
[1721116921516,6.4386,155.32,155.27,6.4035]
[1721116921843,20.0,155.31,155.27,6.4035]
[1721116922045,26.4388,155.31,155.27,6.4035]
[1721116922344,20.0,155.31,155.27,6.4035]
[1721116922634,6.4396,155.29,155.27,6.4035]
[1721116922836,6.4387,155.31,155.27,6.4035]
[1721116923140,20.0,155.3,155.27,6.4035]
[1721116923943,19.41,155.39,155.27,6.4035]
[1721116924147,6.4366,155.36,155.28,45.0]
[1721116924323,6.437,155.35,155.28,45.0]
[1721116924521,6.4366,155.36,155.29,0.44753672]
[1721116924739,6.4366,155.36,155.29,1.28766967]
[1721116925641,20.0,155.35,155.28,45.0]
[1721116925939,6.4362,155.37,155.29,15.2159]
[1721116926147,38.29,155.42,155.3,51.5141]
[1721116926841,6.4357,155.39,155.3,51.5141]
[1721116927218,6.4349,155.41,155.3,51.5141]
[1721116927430,6.4346,155.41,155.32,22.5241]
[1721116927637,6.4346,155.41,155.33,45.0]
[1721116927943,6.4342,155.42,155.33,45.0]
[1721116928315,6.4342,155.42,155.34,6.6555]
[1721116928522,39.0885524,155.45,155.34,6.6555]
[1721116928523,26.4346,155.41,155.35,45.0]
[1721116928945,6.435,155.4,155.35,45.0]
[1721116929118,36.0864,155.41,155.34,6.6555]
[1721116929717,6.4354,155.39,155.34,6.6555]
[1721116929918,6.4362,155.37,155.34,6.6555]
[1721116930142,6.4357,155.39,155.34,6.6555]
[1721116930340,6.4358,155.39,155.34,6.6555]
[1721116930527,6.4358,155.39,155.35,45.0]
[1721116930934,6.4354,155.39,155.35,45.0]
[1721116931458,6.4358,155.38,155.35,45.0]
[1721116931861,20.0,155.41,155.35,45.0]
[1721116932042,6.4357,155.39,155.35,45.0]
[1721116932355,6.4357,155.39,155.34,6.6555]
[1721116932356,55.4966,155.41,155.34,6.6555]
[1721116933044,6.4366,155.36,155.34,6.6555]
[1721116933432,6.437,155.35,155.34,6.6555]
[1721116933639,6.437,155.36,155.34,6.6555]
[1721116934046,6.4366,155.37,155.34,6.6555]
[1721116934239,55.4966,155.41,155.34,6.6555]
[1721116935063,6.4362,155.37,155.34,6.6555]
[1721116935247,6.4354,155.4,155.34,6.6555]
[1721116935450,6.4354,155.4,155.35,45.0]
[1721116936264,6.4342,155.42,155.35,45.0]
[1721116936446,6.4355,155.39,155.35,45.0]
[1721116936645,38.29,155.44,155.35,45.0]
[1721116937158,20.0,155.43,155.35,45.0]
[1721116937360,6.4346,155.41,155.35,45.0]
[1721116937573,20.0,155.4,155.35,45.0]
[1721116938649,0.7985524,155.45,155.35,45.0]
[1721116938967,6.4342,155.42,155.35,45.0]
[1721116939169,6.4346,155.41,155.35,45.0]
[1721116940270,6.4346,155.41,155.37,6.0653]
[1721116940444,6.4346,155.41,155.38,45.0]
[1721116940649,0.7985524,155.45,155.37,6.0653]
[1721116940650,36.2917524,155.45,155.37,6.0653]
[1721116940861,67.62676336,155.44,155.37,6.0653]
[1721116941168,6.4353,155.4,155.37,6.0653]
[1721116941360,6.4358,155.38,155.37,6.0653]
[1721116941989,6.437,155.36,155.33,22.7375]
[1721116942343,6.4371,155.35,155.33,6.1052]
[1721116942644,6.4382,155.33,155.29,22.8761]
[1721116942847,57.7,155.35,155.29,6.2438]
[1721116943067,20.0,155.34,155.25,22.8761]
[1721116943571,6.4379,155.33,155.26,1.28798918]
[1721116943951,20.0,155.32,155.26,1.28798918]
[1721116944365,6.4373,155.35,155.26,46.28798918]
[1721116944559,16.0896,155.38,155.26,46.28798918]
[1721116944560,38.29,155.38,155.26,46.28798918]
[1721116944761,20.0,155.37,155.26,45.0]
[1721116945084,16.0866,155.41,155.28,21.719]
[1721116945244,6.437,155.36,155.29,45.0]
[1721116945439,73.7896,155.38,155.29,45.0]
[1721116946289,6.4391,155.3,155.28,21.719]
[1721116946674,6.4387,155.31,155.28,21.719]
[1721116946979,16.0934,155.35,155.28,21.719]
[1721116947289,20.0,155.34,155.28,21.719]
[1721116947583,6.4391,155.3,155.28,21.719]
[1721116947883,20.0,155.34,155.28,21.719]
[1721116947884,6.4386,155.32,155.28,21.719]
[1721116948288,6.4386,155.32,155.29,45.0]
[1721116948594,6.4382,155.33,155.29,45.0]
[1721116948768,26.4375,155.34,155.29,45.0]
[1721116948953,6.437,155.36,155.29,45.0]
[1721116949671,6.4363,155.37,155.29,45.0]
[1721116951061,6.4375,155.34,155.29,45.0]
[1721116951353,35.4965,155.41,155.29,45.0]
[1721116951354,6.4371,155.35,155.29,45.0]
[1721116951563,35.4965,155.41,155.29,45.0]
[1721116951564,6.4366,155.37,155.3,1.28770813]
[1721116951755,16.0865,155.41,155.29,45.0]
[1721116951978,20.0,155.4,155.29,45.0]
[1721116952184,6.4368,155.36,155.29,45.0]
[1721116953880,6.437,155.35,155.29,45.0]
[1721116954080,6.4375,155.34,155.29,45.0]
[1721116954382,16.0897,155.38,155.28,21.719]
[1721116954594,6.438,155.33,155.28,21.719]
[1721116955078,20.0,155.37,155.28,21.719]
[1721116955272,6.4395,155.29,155.28,21.719]
[1721116955588,57.7,155.35,155.28,21.719]
[1721116955589,6.4392,155.3,155.28,21.719]
[1721116957086,6.4392,155.3,155.2,22.152]
[1721116957685,6.4395,155.29,155.2,22.152]
[1721116957977,57.7,155.32,155.21,45.0]
[1721116958188,20.0,155.31,155.21,45.0]
[1721116958558,6.4404,155.27,155.21,45.0]
[1721116958762,6.4404,155.27,155.2,22.152]
[1721116958984,6.4409,155.26,155.2,22.152]
[1721116959191,6.4412,155.25,155.2,22.152]
[1721116960088,6.4409,155.26,155.2,22.152]
[1721116960290,6.4412,155.25,155.2,22.152]
[1721116960673,6.4408,155.26,155.2,22.152]
[1721116960883,57.7,155.29,155.2,22.152]
[1721116961069,6.4421,155.23,155.2,22.152]
[1721116961566,6.4412,155.25,155.2,22.152]
[1721116962268,6.4412,155.25,155.21,45.0]
[1721116962685,20.0,155.28,155.2,22.152]
[1721116962686,6.442,155.23,155.2,22.152]
[1721116963082,6.4416,155.25,155.2,22.152]
[1721116963479,6.4416,155.24,155.2,22.152]
[1721116963682,6.4412,155.25,155.2,22.152]
[1721116963886,6.4408,155.26,155.2,22.152]
[1721116964095,20.0,155.25,155.2,22.152]
[1721116964480,26.4412,155.25,155.21,45.0]
[1721116964788,20.0,155.25,155.21,45.0]
[1721116965008,6.4416,155.24,155.21,45.0]
[1721116965189,6.4412,155.26,155.21,45.0]
[1721116965397,26.4414,155.25,155.21,45.0]
[1721116965576,6.4414,155.25,155.21,45.0]
[1721116966289,6.4399,155.29,155.21,45.0]
[1721116966494,6.4395,155.3,155.21,45.0]
[1721116966691,6.4395,155.29,155.21,45.0]
[1721116967292,57.7,155.32,155.21,45.0]
[1721116967480,6.4404,155.27,155.21,45.0]
[1721116968000,6.4408,155.26,155.21,45.0]
[1721116968175,6.4404,155.27,155.21,45.0]
[1721116968379,6.44,155.28,155.21,45.0]
[1721116969569,6.44,155.28,155.22,1.2883755]
[1721116969799,6.4396,155.29,155.22,1.2883755]
[1721116970785,6.4391,155.31,155.22,1.2883755]
[1721116970994,26.4391,155.3,155.22,1.2883755]
[1721116971186,6.4387,155.31,155.23,6.1793]
[1721116971389,6.4383,155.33,155.25,15.8625]
[1721116971587,6.4383,155.33,155.26,45.0]
[1721116972578,6.4376,155.34,155.27,1.28311692]
[1721116972904,6.4379,155.33,155.28,6.4338]
[1721116973100,6.4384,155.32,155.29,45.0]
[1721116974290,6.4378,155.34,155.29,45.0]
[1721116974492,20.0,155.33,155.29,45.0]
[1721116975203,16.0908,155.37,155.29,45.0]
[1721116975204,6.4383,155.32,155.29,45.0]
[1721116975383,6.4378,155.34,155.29,45.0]
[1721116975702,26.4379,155.33,155.29,45.0]
[1721116976887,6.4383,155.32,155.29,45.0]
[1721116977385,6.4376,155.34,155.29,45.0]
[1721116977807,6.4379,155.33,155.29,45.0]
[1721116978180,6.437,155.36,155.29,46.28775491]
[1721116978385,9.27960356,155.38,155.29,45.0]
[1721116978609,9.27960356,155.38,155.3,16.2509]
[1721116978802,6.4371,155.35,155.31,45.0]
[1721116979106,20.0,155.37,155.31,45.0]
[1721116979107,6.4375,155.34,155.31,45.0]
[1721116979309,20.0,155.37,155.31,45.0]
[1721116979310,6.4371,155.35,155.31,45.0]
[1721116980396,6.4367,155.36,155.31,45.0]
[1721116980591,35.4977,155.4,155.31,45.0]
[1721116980892,6.4382,155.33,155.31,45.0]
[1721116981090,6.73458466,155.4,155.31,45.0]
[1721116981309,20.2085524,155.45,155.32,6.2616]
[1721116981487,6.4354,155.39,155.33,45.0]
[1721116982286,73.7834,155.44,155.33,45.0]
[1721116982500,73.7865,155.41,155.32,6.2616]
[1721116982711,0.7985524,155.45,155.32,6.2616]
[1721116983010,39.0885524,155.45,155.33,45.0]
[1721116983212,6.4341,155.43,155.34,15.2832]
[1721116983414,39.0885524,155.45,155.35,45.0]
[1721116983614,6.4342,155.42,155.35,45.0]
[1721116983800,39.0885524,155.45,155.35,45.0]
[1721116983801,6.4338,155.43,155.35,45.0]
[1721116984312,39.0885524,155.45,155.35,45.0]
[1721116984501,6.4349,155.41,155.35,45.0]
[1721116985213,6.4351,155.4,155.35,45.0]
[1721116985420,6.4346,155.41,155.35,45.0]
[1721116986116,6.4351,155.4,155.35,45.0]
[1721116986513,58.4985524,155.45,155.34,15.2832]
[1721116986514,6.4354,155.39,155.34,15.2832]
[1721116986817,6.435,155.4,155.34,15.2832]
[1721116987050,6.4358,155.38,155.34,15.2832]
[1721116987426,6.4354,155.39,155.34,15.2832]
[1721116988119,6.4359,155.38,155.34,15.2832]
[1721116989319,6.4353,155.4,155.34,15.2832]
[1721116989500,20.0,155.39,155.35,45.0]
[1721116990217,6.436,155.38,155.34,15.2832]
[1721116990405,6.4362,155.37,155.34,15.2832]
[1721116990609,20.0,155.39,155.34,15.2832]
[1721116990610,6.4359,155.38,155.34,15.2832]
[1721116990814,20.0,155.39,155.35,45.0]
[1721116991023,6.435,155.4,155.35,45.0]
[1721116991218,6.4346,155.41,155.35,45.0]
[1721116991624,0.7985524,155.45,155.36,1.28730084]
[1721116991928,7.2318524,155.45,155.37,6.0833]
[1721116992127,6.4334,155.44,155.38,45.0]
[1721116994227,7.2314524,155.45,155.38,46.28699228]
[1721116994542,7.2315524,155.45,155.38,46.28699228]
[1721116995236,0.7985524,155.45,155.38,45.0]
[1721116995726,0.7985524,155.45,155.39,15.83]
[1721116995931,0.7985524,155.45,155.4,45.0]
[1721116996245,7.2314524,155.45,155.4,45.0]
[1721116996930,0.7985524,155.45,155.39,15.83]
[1721116997144,6.4339,155.43,155.39,15.83]
[1721116997514,7.2318524,155.45,155.39,15.83]
[1721116997715,6.4333,155.44,155.39,15.83]